[Event "NJSK 2026 Jeugd B"]
[Site "Helmond, Netherlands"]
[Date "2026.04.28"]
[Round "4.6"]
[White "De Jong, Lode"]
[Black "Wierenga, Luuk"]
[Result "1/2-1/2"]
[TimeControl "90min/40moves + 30min + 30sec/move"]
[WhiteTitle "-"]
[BlackTitle "-"]
[WhiteFideId "40101860"]
[BlackFideId "1094874"]
[WhiteElo "1902"]
[BlackElo "1977"]

1. e4 {[%clk 01:30:40]} {[%emt 00:00:18]} e5 {[%clk 01:30:55]} {[%emt
00:00:06]} 2. Nf3 {[%clk 01:31:06]} {[%emt 00:00:04]} Nf6 {[%clk 01:31:20]}
{[%emt 00:00:05]} 3. d4 {[%clk 01:31:32]} {[%emt 00:00:04]} Nxe4 {[%clk
01:31:44]} {[%emt 00:00:06]} 4. dxe5 {[%clk 01:31:58]} {[%emt 00:00:04]} d5
{[%clk 01:31:40]} {[%emt 00:00:34]} 5. Nbd2 {[%clk 01:32:09]} {[%emt 00:00:18]}
Nxd2 {[%clk 01:29:45]} {[%emt 00:02:25]} 6. Bxd2 {[%clk 01:31:54]} {[%emt
00:00:46]} Be7 {[%clk 01:27:29]} {[%emt 00:02:47]} 7. Bd3 {[%clk 01:32:11]}
{[%emt 00:00:12]} c5 {[%clk 01:24:30]} {[%emt 00:03:29]} 8. c3 {[%clk
01:31:26]} {[%emt 00:01:16]} Nc6 {[%clk 01:21:52]} {[%emt 00:03:08]} 9. Qe2
{[%clk 01:30:20]} {[%emt 00:01:36]} Be6 {[%clk 01:18:40]} {[%emt 00:03:41]} 10.
O-O {[%clk 01:30:07]} {[%emt 00:00:42]} g5 {[%clk 01:08:05]} {[%emt 00:11:06]}
11. Ne1 {[%clk 01:20:21]} {[%emt 00:10:16]} Qd7 {[%clk 01:03:51]} {[%emt
00:04:44]} 12. f4 {[%clk 01:16:33]} {[%emt 00:04:16]} gxf4 {[%clk 01:03:56]}
{[%emt 00:00:27]} 13. Bxf4 {[%clk 01:17:01]} {[%emt 00:00:02]} O-O-O {[%clk
00:59:35]} {[%emt 00:04:51]} 14. Nf3 {[%clk 01:15:40]} {[%emt 00:01:50]} Rdg8
{[%clk 00:57:42]} {[%emt 00:02:24]} 15. Bh6 {[%clk 00:54:44]} {[%emt 00:21:27]}
Bh3 {[%clk 00:50:40]} {[%emt 00:07:32]} 16. Rf2 {[%clk 00:54:36]} {[%emt
00:00:37]} Qe6 {[%clk 00:43:38]} {[%emt 00:07:32]} 17. Be3 {[%clk 00:49:09]}
{[%emt 00:05:58]} Nxe5 {[%clk 00:38:54]} {[%emt 00:05:14]} 18. Nxe5 {[%clk
00:49:16]} {[%emt 00:00:23]} Qxe5 {[%clk 00:39:10]} {[%emt 00:00:15]} 19. Qd2
{[%clk 00:48:29]} {[%emt 00:01:15]} Be6 {[%clk 00:34:16]} {[%emt 00:05:25]} 20.
b4 {[%clk 00:46:07]} {[%emt 00:02:51]} Bg5 {[%clk 00:32:03]} {[%emt 00:02:43]}
21. Re1 {[%clk 00:45:21]} {[%emt 00:01:16]} Bxe3 {[%clk 00:30:15]} {[%emt
00:02:19]} 22. Rxe3 {[%clk 00:45:44]} {[%emt 00:00:06]} Qc7 {[%clk 00:29:29]}
{[%emt 00:01:16]} 23. Bf5 {[%clk 00:45:14]} {[%emt 00:00:59]} Qc6 {[%clk
00:26:13]} {[%emt 00:03:49]} 24. Re5 {[%clk 00:42:25]} {[%emt 00:03:19]} Rd8
{[%clk 00:24:58]} {[%emt 00:01:45]} 25. b5 {[%clk 00:39:42]} {[%emt 00:03:13]}
Qd6 {[%clk 00:24:17]} {[%emt 00:01:11]} 26. Bxe6+ {[%clk 00:39:54]} {[%emt
00:00:19]} fxe6 {[%clk 00:24:39]} {[%emt 00:00:08]} 27. Qe1 {[%clk 00:40:21]}
{[%emt 00:00:01]} Rhe8 {[%clk 00:23:18]} {[%emt 00:01:52]} 28. Rf6 {[%clk
00:40:50]} {[%emt 00:00:02]} d4 {[%clk 00:19:05]} {[%emt 00:04:43]} 29. Rfxe6
{[%clk 00:41:09]} {[%emt 00:00:10]} Rxe6 {[%clk 00:19:27]} {[%emt 00:00:08]} 30.
Rxe6 {[%clk 00:41:35]} {[%emt 00:00:04]} Qd5 {[%clk 00:19:21]} {[%emt
00:00:36]} 31. cxd4 {[%clk 00:41:38]} {[%emt 00:00:27]} Qxd4+ {[%clk 00:16:09]}
{[%emt 00:03:43]} 32. Qf2 {[%clk 00:40:15]} {[%emt 00:01:52]} 1/2-1/2

[Event "NJSK 2026 Jeugd B"]
[Site "Helmond, Netherlands"]
[Date "2026.04.28"]
[Round "4.7"]
[White "Woldhuis, Marnik"]
[Black "Hallibert, Emilien"]
[Result "0-1"]
[TimeControl "90min/40moves + 30min + 30sec/move"]
[WhiteTitle "-"]
[BlackTitle "-"]
[WhiteFideId "1087096"]
[BlackFideId "1092561"]
[WhiteElo "1939"]
[BlackElo "1975"]

1. b4 {[%clk 01:30:58]} {[%emt 00:00:01]} e5 {[%clk 01:30:42]} {[%emt
00:00:18]} 2. Bb2 {[%clk 01:31:23]} {[%emt 00:00:06]} Bxb4 {[%clk 01:30:47]}
{[%emt 00:00:24]} 3. Bxe5 {[%clk 01:31:47]} {[%emt 00:00:07]} Nf6 {[%clk
01:31:14]} {[%emt 00:00:03]} 4. e3 {[%clk 01:32:02]} {[%emt 00:00:15]} d5
{[%clk 01:31:15]} {[%emt 00:00:28]} 5. Nf3 {[%clk 01:32:23]} {[%emt 00:00:10]}
c5 {[%clk 01:31:36]} {[%emt 00:00:08]} 6. Be2 {[%clk 01:31:48]} {[%emt
00:01:04]} Nc6 {[%clk 01:31:52]} {[%emt 00:00:15]} 7. Bb2 {[%clk 01:32:04]}
{[%emt 00:00:15]} O-O {[%clk 01:32:18]} {[%emt 00:00:04]} 8. O-O {[%clk
01:32:18]} {[%emt 00:00:16]} Re8 {[%clk 01:32:44]} {[%emt 00:00:03]} 9. d3
{[%clk 01:32:29]} {[%emt 00:00:19]} Ba5 {[%clk 01:30:27]} {[%emt 00:02:47]} 10.
Nbd2 {[%clk 01:31:26]} {[%emt 00:01:33]} Bc7 {[%clk 01:24:46]} {[%emt
00:06:11]} 11. c4 {[%clk 01:22:36]} {[%emt 00:09:20]} dxc4 {[%clk 01:18:52]}
{[%emt 00:06:24]} 12. Nxc4 {[%clk 01:22:25]} {[%emt 00:00:41]} b5 {[%clk
01:14:17]} {[%emt 00:05:05]} 13. Ncd2 {[%clk 01:22:20]} {[%emt 00:00:35]} Bb7
{[%clk 01:13:29]} {[%emt 00:01:18]} 14. Qb3 {[%clk 01:15:06]} {[%emt 00:07:44]}
a6 {[%clk 01:11:03]} {[%emt 00:02:55]} 15. a4 {[%clk 01:14:17]} {[%emt
00:01:19]} Rb8 {[%clk 00:58:12]} {[%emt 00:13:21]} 16. axb5 {[%clk 01:06:13]}
{[%emt 00:08:34]} axb5 {[%clk 00:58:12]} {[%emt 00:00:30]} 17. Qxb5 {[%clk
01:04:09]} {[%emt 00:02:33]} Nd4 {[%clk 00:52:23]} {[%emt 00:06:20]} 18. Nxd4
{[%clk 00:51:44]} {[%emt 00:12:55]} Qd6 {[%clk 00:44:47]} {[%emt 00:08:05]} 19.
g3 {[%clk 00:48:10]} {[%emt 00:04:04]} Bg2 {[%clk 00:34:01]} {[%emt 00:11:17]}
20. Kxg2 {[%clk 00:27:34]} {[%emt 00:21:07]} Rxb5 {[%clk 00:34:13]} {[%emt
00:00:18]} 21. Nxb5 {[%clk 00:27:59]} {[%emt 00:00:06]} Qc6+ {[%clk 00:34:10]}
{[%emt 00:00:31]} 22. Ne4 {[%clk 00:28:14]} {[%emt 00:00:15]} Qxb5 {[%clk
00:27:01]} {[%emt 00:07:40]} 23. Bxf6 {[%clk 00:28:15]} {[%emt 00:00:28]} Qc6
{[%clk 00:25:57]} {[%emt 00:01:35]} 24. Bd1 {[%clk 00:27:04]} {[%emt 00:01:41]}
Rb8 {[%clk 00:19:11]} {[%emt 00:07:16]} 25. Rc1 {[%clk 00:15:07]} {[%emt
00:12:25]} Bb6 {[%clk 00:14:35]} {[%emt 00:05:07]} 26. Bd4 {[%clk 00:06:14]}
{[%emt 00:09:23]} f5 {[%clk 00:13:38]} {[%emt 00:01:26]} 27. Bb3+ {[%clk
00:06:37]} {[%emt 00:00:07]} Kh8 {[%clk 00:13:25]} {[%emt 00:00:44]} 28. Bxc5
{[%clk 00:07:01]} {[%emt 00:00:06]} fxe4 {[%clk 00:13:18]} {[%emt 00:00:36]} 29.
d4 {[%clk 00:07:18]} {[%emt 00:00:13]} Bxc5 {[%clk 00:12:42]} {[%emt 00:01:06]}
30. Rxc5 {[%clk 00:07:36]} {[%emt 00:00:11]} Qf6 {[%clk 00:12:55]} {[%emt
00:00:18]} 31. Rfc1 {[%clk 00:07:07]} {[%emt 00:00:59]} Rf8 {[%clk 00:12:24]}
{[%emt 00:01:01]} 32. R5c2 {[%clk 00:05:53]} {[%emt 00:01:43]} Qf3+ {[%clk
00:11:02]} {[%emt 00:01:53]} 33. Kg1 {[%clk 00:06:16]} {[%emt 00:00:08]} h5
{[%clk 00:10:54]} {[%emt 00:00:37]} 34. Ra2 {[%clk 00:04:58]} {[%emt 00:01:48]}
Qf6 {[%clk 00:05:43]} {[%emt 00:05:41]} 35. h4 {[%clk 00:03:39]} {[%emt
00:01:50]} Rb8 {[%clk 00:02:57]} {[%emt 00:03:16]} 36. Bd1 {[%clk 00:02:46]}
{[%emt 00:01:23]} Qf7 {[%clk 00:02:35]} {[%emt 00:00:52]} 37. Ra5 {[%clk
00:02:43]} {[%emt 00:00:33]} g6 {[%clk 00:02:44]} {[%emt 00:00:21]} 38. Rac5
{[%clk 00:03:08]} {[%emt 00:00:05]} Rf8 {[%clk 00:02:14]} {[%emt 00:00:59]} 39.
R5c2 {[%clk 00:02:11]} {[%emt 00:01:28]} Qf5 {[%clk 00:01:58]} {[%emt
00:00:46]} 40. Rd2 {[%clk 00:02:27]} {[%emt 00:00:13]} Qa5 {[%clk 00:01:53]}
{[%emt 00:00:35]} 41. Rdc2 {[%clk 00:02:04]} {[%emt 00:00:54]} Qf5 {[%clk
00:29:34]} {[%emt 00:02:48]} 42. Kg2 {[%clk 00:32:26]} {[%emt 00:00:08]} Kh7
{[%clk 00:28:32]} {[%emt 00:01:32]} 43. Rd2 {[%clk 00:32:45]} {[%emt 00:00:10]}
Qa5 {[%clk 00:27:07]} {[%emt 00:01:55]} 44. Rb2 {[%clk 00:32:06]} {[%emt
00:01:09]} Qe1 {[%clk 00:23:46]} {[%emt 00:03:49]} 45. Rcb1 {[%clk 00:32:10]}
{[%emt 00:00:28]} Qa5 {[%clk 00:22:34]} {[%emt 00:01:42]} 46. Be2 {[%clk
00:32:18]} {[%emt 00:00:23]} Qf5 {[%clk 00:22:50]} {[%emt 00:00:14]} 47. Bf1
{[%clk 00:32:40]} {[%emt 00:00:08]} g5 {[%clk 00:21:34]} {[%emt 00:01:46]} 48.
hxg5 {[%clk 00:31:46]} {[%emt 00:01:23]} h4 {[%clk 00:21:11]} {[%emt 00:00:52]}
49. Kh1 {[%clk 00:27:15]} {[%emt 00:05:01]} Qxg5 {[%clk 00:17:32]} {[%emt
00:04:10]} 50. Bg2 {[%clk 00:17:58]} {[%emt 00:09:47]} Qg4 {[%clk 00:16:09]}
{[%emt 00:01:53]} 51. gxh4 {[%clk 00:17:55]} {[%emt 00:00:32]} Rg8 {[%clk
00:15:36]} {[%emt 00:01:03]} 52. f4 {[%clk 00:13:18]} {[%emt 00:05:07]} exf3
{[%clk 00:13:22]} {[%emt 00:02:44]} 53. Rg1 {[%clk 00:13:43]} {[%emt 00:00:05]}
Qg3 {[%clk 00:11:07]} {[%emt 00:02:45]} 0-1

[Event "NJSK 2026 Jeugd B"]
[Site "Helmond, Netherlands"]
[Date "2026.04.28"]
[Round "4.8"]
[White "Etienne, Ghilon"]
[Black "Darie, Aden"]
[Result "1-0"]
[TimeControl "90min/40moves + 30min + 30sec/move"]
[WhiteTitle "-"]
[BlackTitle "-"]
[WhiteFideId "1084267"]
[BlackFideId "1094831"]
[WhiteElo "1976"]
[BlackElo "2150"]

1. Nf3 {[%clk 01:30:51]} {[%emt 00:00:09]} Nf6 {[%clk 01:30:51]} {[%emt
00:00:09]} 2. g3 {[%clk 01:31:07]} {[%emt 00:00:12]} b5 {[%clk 01:31:05]}
{[%emt 00:00:17]} 3. a4 {[%clk 01:27:44]} {[%emt 00:03:53]} b4 {[%clk
01:31:26]} {[%emt 00:00:09]} 4. c4 {[%clk 01:26:06]} {[%emt 00:02:08]} c5
{[%clk 01:27:20]} {[%emt 00:04:36]} 5. Bg2 {[%clk 01:21:26]} {[%emt 00:05:10]}
Bb7 {[%clk 01:27:42]} {[%emt 00:00:07]} 6. O-O {[%clk 01:21:24]} {[%emt
00:00:32]} e6 {[%clk 01:25:51]} {[%emt 00:02:20]} 7. e3 {[%clk 01:17:20]}
{[%emt 00:04:35]} Qc7 {[%clk 01:23:11]} {[%emt 00:03:11]} 8. b3 {[%clk
01:11:01]} {[%emt 00:06:50]} d5 {[%clk 01:22:53]} {[%emt 00:00:47]} 9. cxd5
{[%clk 01:11:12]} {[%emt 00:00:19]} exd5 {[%clk 01:18:52]} {[%emt 00:04:31]} 10.
d3 {[%clk 01:06:46]} {[%emt 00:04:56]} Be7 {[%clk 01:17:03]} {[%emt 00:02:19]}
11. Nbd2 {[%clk 01:05:54]} {[%emt 00:01:23]} O-O {[%clk 01:17:22]} {[%emt
00:00:10]} 12. Bb2 {[%clk 01:05:47]} {[%emt 00:00:37]} Nc6 {[%clk 01:11:20]}
{[%emt 00:06:32]} 13. Re1 {[%clk 01:02:51]} {[%emt 00:03:26]} Nd7 {[%clk
00:56:27]} {[%emt 00:15:23]} 14. d4 {[%clk 00:56:34]} {[%emt 00:06:54]} Na5
{[%clk 00:56:35]} {[%emt 00:00:15]} 15. dxc5 {[%clk 00:55:27]} {[%emt
00:01:37]} Nxc5 {[%clk 00:55:46]} {[%emt 00:01:19]} 16. Rc1 {[%clk 00:55:02]}
{[%emt 00:00:56]} Qd8 {[%clk 00:49:48]} {[%emt 00:06:27]} 17. Bf1 {[%clk
00:54:50]} {[%emt 00:00:41]} Bc6 {[%clk 00:50:11]} {[%emt 00:00:08]} 18. Nd4
{[%clk 00:54:56]} {[%emt 00:00:24]} Bd7 {[%clk 00:50:21]} {[%emt 00:00:21]} 19.
Qf3 {[%clk 00:52:26]} {[%emt 00:03:00]} Be6 {[%clk 00:48:31]} {[%emt 00:02:19]}
20. Rc2 {[%clk 00:48:09]} {[%emt 00:04:47]} Ne4 {[%clk 00:43:54]} {[%emt
00:05:07]} 21. Nxe6 {[%clk 00:35:42]} {[%emt 00:12:58]} fxe6 {[%clk 00:40:22]}
{[%emt 00:04:01]} 22. Qg4 {[%clk 00:36:02]} {[%emt 00:00:11]} Nc3 {[%clk
00:38:10]} {[%emt 00:02:42]} 23. Qxe6+ {[%clk 00:35:43]} {[%emt 00:00:49]} Kh8
{[%clk 00:38:34]} {[%emt 00:00:05]} 24. Bd3 {[%clk 00:30:14]} {[%emt 00:06:01]}
Rc8 {[%clk 00:37:22]} {[%emt 00:01:42]} 25. Qh3 {[%clk 00:29:49]} {[%emt
00:00:55]} h6 {[%clk 00:37:24]} {[%emt 00:00:27]} 26. Qg4 {[%clk 00:22:07]}
{[%emt 00:08:13]} Qb6 {[%clk 00:36:14]} {[%emt 00:01:40]} 27. Nb1 {[%clk
00:20:00]} {[%emt 00:02:38]} Qf6 {[%clk 00:35:55]} {[%emt 00:00:49]} 28. Qg6
{[%clk 00:13:45]} {[%emt 00:06:45]} Qxg6 {[%clk 00:35:44]} {[%emt 00:00:40]} 29.
Bxg6 {[%clk 00:14:09]} {[%emt 00:00:06]} Rf6 {[%clk 00:34:25]} {[%emt
00:01:48]} 30. Bd3 {[%clk 00:10:58]} {[%emt 00:03:43]} Rfc6 {[%clk 00:34:44]}
{[%emt 00:00:10]} 31. Bxc3 {[%clk 00:10:56]} {[%emt 00:00:33]} bxc3 {[%clk
00:34:52]} {[%emt 00:00:20]} 32. Bb5 {[%clk 00:11:11]} {[%emt 00:00:16]} R6c7
{[%clk 00:34:29]} {[%emt 00:00:52]} 33. Ba6 {[%clk 00:06:31]} {[%emt 00:05:11]}
Rb8 {[%clk 00:34:40]} {[%emt 00:00:19]} 34. Rxc3 {[%clk 00:06:54]} {[%emt
00:00:08]} Rxc3 {[%clk 00:33:30]} {[%emt 00:01:38]} 35. Nxc3 {[%clk 00:07:22]}
{[%emt 00:00:04]} Bb4 {[%clk 00:33:50]} {[%emt 00:00:10]} 36. Rc1 {[%clk
00:07:45]} {[%emt 00:00:07]} Nxb3 {[%clk 00:34:13]} {[%emt 00:00:07]} 37. Rc2
{[%clk 00:08:11]} {[%emt 00:00:04]} d4 {[%clk 00:34:19]} {[%emt 00:00:23]} 38.
Nd5 {[%clk 00:05:22]} {[%emt 00:03:19]} dxe3 {[%clk 00:30:36]} {[%emt
00:04:12]} 39. fxe3 {[%clk 00:03:07]} {[%emt 00:02:47]} Ba5 {[%clk 00:27:43]}
{[%emt 00:03:23]} 40. Rb2 {[%clk 00:00:47]} {[%emt 00:02:50]} Rd8 {[%clk
00:27:51]} {[%emt 00:00:19]} 41. Bc4 {[%clk 00:24:04]} {[%emt 00:07:15]} Nd2
{[%clk 00:56:55]} {[%emt 00:01:26]} 42. Ba2 {[%clk 00:24:24]} {[%emt 00:00:10]}
Rd7 {[%clk 00:50:43]} {[%emt 00:06:41]} 43. Rb8+ {[%clk 00:19:52]} {[%emt
00:05:03]} Kh7 {[%clk 00:48:57]} {[%emt 00:02:17]} 44. Kg2 {[%clk 00:19:54]}
{[%emt 00:00:28]} Kg6 {[%clk 00:47:03]} {[%emt 00:02:23]} 45. Rf8 {[%clk
00:18:48]} {[%emt 00:01:36]} Bc7 {[%clk 00:45:56]} {[%emt 00:01:38]} 46. Rf2
{[%clk 00:13:59]} {[%emt 00:05:19]} Ba5 {[%emt 00:00:51]} 47. Rf8 {[%clk
00:14:11]} {[%emt 00:00:01]} Bc7 {[%clk 00:46:15]} {[%emt 00:00:06]} 48. e4
{[%clk 00:11:45]} {[%emt 00:02:56]} h5 {[%clk 00:44:39]} {[%emt 00:02:07]} 49.
e5 {[%clk 00:11:55]} {[%emt 00:00:20]} Rd8 {[%clk 00:40:40]} {[%emt 00:04:29]}
50. Rf2 {[%clk 00:08:46]} {[%emt 00:03:39]} Ba5 {[%clk 00:40:35]} {[%emt
00:00:34]} 51. e6 {[%clk 00:08:58]} {[%emt 00:00:19]} Re8 {[%clk 00:40:00]}
{[%emt 00:01:05]} 52. e7 {[%clk 00:09:12]} {[%emt 00:00:16]} Ne4 {[%clk
00:39:46]} {[%emt 00:00:44]} 53. Bb1 {[%clk 00:09:33]} {[%emt 00:00:09]} 1-0

[Event "NJSK 2026 Jeugd B"]
[Site "Helmond, Netherlands"]
[Date "2026.04.28"]
[Round "4.9"]
[White "Roebers, Bregje"]
[Black "Van Haaften, Jelle"]
[Result "1/2-1/2"]
[TimeControl "90min/40moves + 30min + 30sec/move"]
[WhiteTitle "-"]
[BlackTitle "-"]
[WhiteFideId "1085174"]
[BlackFideId "1096281"]
[WhiteElo "1945"]
[BlackElo "1882"]

1. e4 {[%clk 01:30:56]} {[%emt 00:00:04]} c6 {[%clk 01:30:52]} {[%emt
00:00:08]} 2. d3 {[%clk 01:29:55]} {[%emt 00:01:31]} d5 {[%clk 01:31:13]}
{[%emt 00:00:09]} 3. Bf4 {[%clk 01:29:21]} {[%emt 00:01:03]} dxe4 {[%clk
01:19:10]} {[%emt 00:12:33]} 4. Nc3 {[%clk 01:27:11]} {[%emt 00:02:40]} exd3
{[%clk 01:16:42]} {[%emt 00:02:58]} 5. Bxd3 {[%clk 01:26:45]} {[%emt 00:00:56]}
Nf6 {[%clk 01:17:02]} {[%emt 00:00:11]} 6. Nf3 {[%clk 01:25:03]} {[%emt
00:02:12]} Bg4 {[%clk 01:12:27]} {[%emt 00:05:04]} 7. h3 {[%clk 01:21:18]}
{[%emt 00:04:15]} Bh5 {[%clk 01:09:44]} {[%emt 00:03:14]} 8. Qe2 {[%clk
01:18:24]} {[%emt 00:03:23]} e6 {[%clk 01:05:22]} {[%emt 00:04:51]} 9. O-O-O
{[%clk 01:15:33]} {[%emt 00:03:23]} Nbd7 {[%clk 01:05:25]} {[%emt 00:00:26]} 10.
g4 {[%clk 00:49:03]} {[%emt 00:27:00]} Bg6 {[%clk 01:05:18]} {[%emt 00:00:37]}
11. Bxg6 {[%clk 00:44:14]} {[%emt 00:05:20]} hxg6 {[%clk 01:05:23]} {[%emt
00:00:23]} 12. Ne5 {[%clk 00:41:27]} {[%emt 00:03:18]} Be7 {[%clk 00:49:31]}
{[%emt 00:16:20]} 13. Ne4 {[%clk 00:30:15]} {[%emt 00:11:43]} Qa5 {[%clk
00:45:22]} {[%emt 00:04:39]} 14. Nxf7 {[%clk 00:18:14]} {[%emt 00:12:31]} O-O
{[%clk 00:20:31]} {[%emt 00:25:23]} 15. Nxf6+ {[%clk 00:11:21]} {[%emt
00:07:23]} Bxf6 {[%clk 00:19:42]} {[%emt 00:01:18]} 16. Rxd7 {[%clk 00:04:49]}
{[%emt 00:07:03]} Bxb2+ {[%clk 00:18:51]} {[%emt 00:01:21]} 17. Kxb2 {[%clk
00:03:33]} {[%emt 00:01:46]} Qb4+ {[%clk 00:19:14]} {[%emt 00:00:07]} 18. Ka1
{[%clk 00:03:17]} {[%emt 00:00:46]} Qc3+ {[%clk 00:19:25]} {[%emt 00:00:20]} 19.
Kb1 {[%clk 00:03:39]} {[%emt 00:00:08]} Qb4+ {[%clk 00:19:50]} {[%emt
00:00:04]} 20. Ka1 {[%clk 00:03:03]} {[%emt 00:01:05]} Qc3+ {[%clk 00:20:13]}
{[%emt 00:00:07]} 21. Kb1 {[%clk 00:03:29]} {[%emt 00:00:05]} Qb4+ {[%clk
00:20:23]} {[%emt 00:00:19]} 22. Ka1 {[%clk 00:01:59]} {[%emt 00:01:29]}
1/2-1/2